Workbook

Sheet Balance Sheet Template
B1: BALANCE SHEET TEMPLATE
B2: ASSETS | C2: 2018 | D2: 2017 | F2: LIABILITIES & OWNER'S EQUITY | G2: 2018 | H2: 2017
B3: CURRENT ASSETS | F3: CURRENT LIABILITIES
B4: Cash | C4: 11874 | D4: 0 | F4: Accounts Payable | G4: 8060 | H4: 0
B5: Accounts Receivable | C5: 0 | D5: 0 | F5: Short-Term Loans | G5: 0 | H5: 0
B6: Inventory | C6: 0 | D6: 0 | F6: Income Taxes Payable | G6: 3145 | H6: 0
B7: Prepaid Expenses | C7: 0 | D7: 0 | F7: Accrued Salaries and Wages | G7: 0 | H7: 0
B8: Short-Term Investments | C8: 0 | D8: 0 | F8: Unearned Revenue | G8: 0 | H8: 0
B9: TOTAL CURRENT ASSETS | C9: =SUM(C4:C8) -> 11874 | D9: =SUM(D4:D8) -> 0 | F9: Current Portion of Long-Term Debt | G9: 0 | H9: 0
F10: TOTAL CURRENT LIABILITIES | G10: =SUM(G4:G9) -> 11205 | H10: =SUM(H4:H9) -> 0
B11: FIXED (LONG-TERM) ASSETS
B12: Long-term Investments | C12: 1208 | D12: 0 | F12: LONG-TERM LIABILITIES
B13: Property, Plant, and Equipment | C13: 15340 | D13: 0 | F13: Long-Term Debt | G13: 3450 | H13: 0
B14: (Less Accumulated Depreciation) | C14: -2200 | D14: 0 | F14: Deferred Income Tax | G14: 0 | H14: 0
B15: Intangible Assets | C15: 0 | D15: 0 | F15: Other | G15: 0 | H15: 0
B16: TOTAL FIXED ASSETS | C16: =SUM(C12:C15) -> 14348 | D16: =SUM(D12:D15) -> 0 | F16: TOTAL LONG-TERM LIABILITIES | G16: =SUM(G13:G15) -> 3450 | H16: =SUM(H13:H15) -> 0
B18: OTHER ASSETS | F18: OWNER'S EQUITY
B19: Deferred Income Tax | C19: 0 | D19: 0 | F19: Owner's Investment | G19: 7178 | H19: 0
B20: Other | C20: 0 | D20: 0 | F20: Retained Earnings | G20: 4389 | H20: 0
B21: Other | C21: 0 | D21: 0 | F21: Other | G21: 0 | H21: 0
B22: TOTAL OTHER ASSETS | C22: =SUM(C19:C21) -> 0 | D22: =SUM(D19:D21) -> 0 | F22: TOTAL OWNER'S EQUITY | G22: =SUM(G19:G21) -> 11567 | H22: =SUM(H19:H21) -> 0
B24: TOTAL ASSETS | C24: =C9+C16+C22 -> 26222 | D24: =D9+D16+D22 -> 0 | F24: TOTAL LIABILITIES & OWNER'S EQUITY | G24: =G10+G16+G22 -> 26222 | H24: =H10+H16+H22 -> 0
D25: {42}
B26: COMMON FINANCIAL RATIOS
B27: Debt Ratio (Total Liabilities / Total Assets) | C27: =IF(C24=0,"",(G10+G16)/C24) -> 0.5588818549 | D27: =IF(D24=0,"",(H10+H16)/D24) -> 
B28: Current Ratio (Current Assets / Current Liabilities) | C28: =IF(G10=0,"",C9/G10) -> 1.059705489 | D28: =IF(H10=0,"",D9/H10) -> 
B29: Working Capital (Current Assets - Current Liabilities) | C29: =C9-G10 -> 669 | D29: =D9-H10 -> 0
B30: Assets-to-Equity Ratio (Total Assets / Owner's Equity) | C30: =IF(G22=0,"",C24/G22) -> 2.26696637 | D30: =IF(H22=0,"",D24/H22) -> 
B31: Debt-to-Equity Ratio (Total Liabilities / Owner's Equity) | C31: =IF(G22=0,"",(G10+G16)/G22) -> 1.26696637 | D31: =IF(H22=0,"",(H10+H16)/H22) -> 
B33: CLICK HERE TO CREATE BALANCE SHEET TEMPLATES IN SMARTSHEET
